fUSD/lending_fUSD_20250503
["ID","MTS","AMOUNT","RATE_DAILY","PERIOD"]
[359724070,1746281439394,-500.0,0.0001964,2]
[359724071,1746281439403,-152.6145878,0.0001964,2]
[359724072,1746281439412,-152.14871149,0.0001964,2]
[359724073,1746281439422,-150.0,0.0001964,2]
[359724074,1746281439432,-151.58141224,0.0001964,2]
[359724075,1746281439442,-153.14775644,0.00019641,2]
[359724076,1746281439451,-500.0,0.00019641,2]
[359724077,1746281439461,-150.0,0.00019641,2]
[359724078,1746281439470,-187.51902884,0.0001965,2]
[359724079,1746281439479,-335.38154665,0.0001965,2]
[359724080,1746281439489,-186.20409185,0.0001965,2]
[359724081,1746281439499,-299.64495513,0.0001965,2]
[359724082,1746281439509,-194.10746415,0.0001965,2]
[359724083,1746281439518,-500.0,0.0001965,2]
[359724084,1746281439527,-500.0,0.0001965,2]
[359724085,1746281439536,-500.0,0.0001965,2]
[359724086,1746281439545,-500.0,0.0001965,2]
[359724087,1746281439555,-546.08891656,0.0001965,2]
[359724088,1746281439564,-500.0,0.0001965,2]
[359724089,1746281439574,-500.0,0.0001965,2]
[359724090,1746281439583,-500.0,0.0001965,2]
[359724091,1746281439592,-500.0,0.0001965,2]
[359724092,1746281439601,-500.0,0.0001965,2]
[359724093,1746281439610,-7184.41910393,0.00019651,2]
[359724094,1746281439619,-4677.38197241,0.00019655,2]
[359724095,1746281439629,-501.29466975,0.00019673,2]
[359724096,1746281439639,-4677.38197241,0.00019685,2]
[359724097,1746281439648,-7184.41910393,0.00019692,2]
[359724098,1746281439658,-70533.39211185,0.000197,2]
[359724099,1746281439667,-4677.38197241,0.00019716,2]
[359724100,1746281439676,-154.6696637,0.0001972,2]
[359724101,1746281439685,-500.0,0.00019723,2]
[359724102,1746281439695,-450.0,0.00019724,2]
[359724103,1746281439704,-450.0,0.00019724,2]
[359724104,1746281439713,-450.0,0.00019724,2]
[359724105,1746281439723,-450.0,0.00019724,2]
[359724106,1746281439732,-450.0,0.00019724,2]
[359724107,1746281439743,-450.0,0.00019724,2]
[359724108,1746281439752,-450.0,0.00019724,2]
[359724109,1746281439762,-450.0,0.00019724,2]
[359724110,1746281439771,-450.0,0.00019724,2]
[359724111,1746281439780,-450.0,0.00019724,2]
[359724112,1746281439790,-424.0259524,0.00019724,2]
[359724113,1746281439799,-385.68715959,0.00019724,2]
[359724114,1746281439808,-229.13136487,0.00019724,2]
[359724115,1746281439818,-450.0,0.00019724,2]
[359724116,1746281439827,-450.0,0.00019724,2]
[359724117,1746281439837,-450.0,0.00019724,2]
[359724118,1746281439846,-450.0,0.00019724,2]
[359724119,1746281439856,-450.0,0.00019724,2]
[359724120,1746281439867,-450.0,0.00019724,2]
[359724121,1746281439876,-721.79,0.00019724,2]
[359724122,1746281439886,-450.0,0.00019724,2]
[359724123,1746281439895,-368.92898897,0.00019724,2]
[359724124,1746281439905,-450.0,0.00019724,2]
[359724125,1746281439915,-450.0,0.00019724,2]
[359724126,1746281439924,-450.0,0.00019724,2]
[359724127,1746281439934,-450.0,0.00019724,2]
[359724128,1746281439943,-250.0,0.00019724,2]
[359724129,1746281439953,-450.0,0.00019724,2]
[359724130,1746281439963,-450.0,0.00019724,2]
[359724131,1746281439973,-450.0,0.00019724,2]
[359724132,1746281439982,-450.0,0.00019724,2]
[359724133,1746281439993,-450.0,0.00019724,2]
[359724134,1746281440003,-450.0,0.00019724,2]
[359724135,1746281440012,-450.0,0.00019724,2]
[359724136,1746281440021,-450.0,0.00019724,2]
[359724137,1746281440031,-450.0,0.00019724,2]
[359724138,1746281440040,-450.0,0.00019724,2]
[359724139,1746281440050,-450.0,0.00019724,2]
[359724140,1746281440059,-450.0,0.00019724,2]
[359724141,1746281440068,-450.0,0.00019724,2]
[359724142,1746281440078,-450.0,0.00019724,2]
[359724143,1746281440087,-450.0,0.00019724,2]
[359724144,1746281440097,-450.0,0.00019724,2]
[359724145,1746281440106,-450.0,0.00019724,2]
[359724146,1746281440116,-450.0,0.00019724,2]
[359724147,1746281440129,-450.0,0.00019724,2]
[359724148,1746281440138,-450.0,0.00019724,2]
[359724149,1746281440148,-450.0,0.00019724,2]
[359724150,1746281440158,-450.0,0.00019724,2]
[359724151,1746281440167,-450.0,0.00019724,2]
[359724152,1746281440177,-450.0,0.00019724,2]
[359724153,1746281440187,-450.0,0.00019724,2]
[359724154,1746281440196,-450.0,0.00019724,2]
[359724155,1746281440207,-450.0,0.00019724,2]
[359724156,1746281440217,-450.0,0.00019724,2]
[359724157,1746281440226,-450.0,0.00019724,2]
[359724158,1746281440236,-450.0,0.00019724,2]
[359724159,1746281440245,-450.0,0.00019724,2]
[359724160,1746281440254,-450.0,0.00019724,2]
[359724161,1746281440264,-450.0,0.00019724,2]
[359724162,1746281440273,-450.0,0.00019724,2]
[359724163,1746281440282,-450.0,0.00019724,2]
[359724164,1746281440291,-450.0,0.00019724,2]
[359724165,1746281440301,-450.0,0.00019724,2]
[359724166,1746281440310,-450.0,0.00019724,2]
[359724168,1746281440319,-450.0,0.00019724,2]
[359724170,1746281440328,-450.0,0.00019724,2]
[359724172,1746281440338,-450.0,0.00019724,2]
[359724174,1746281440347,-1043.84,0.00019724,2]
[359724176,1746281440357,-450.0,0.00019724,2]
[359724178,1746281440366,-450.0,0.00019724,2]
[359724180,1746281440376,-450.0,0.00019724,2]
[359724182,1746281440385,-527.6350168,0.00019724,2]
[359724184,1746281440394,-450.0,0.00019724,2]
[359724186,1746281440403,-450.0,0.00019724,2]
[359724188,1746281440412,-734.08,0.00019724,2]
[359724190,1746281440421,-450.0,0.00019724,2]
[359724192,1746281440431,-450.0,0.00019724,2]
[359724194,1746281440440,-847.52,0.00019724,2]
[359724196,1746281440449,-847.52,0.00019724,2]
[359724198,1746281440458,-450.0,0.00019724,2]
[359724200,1746281440467,-450.0,0.00019724,2]
[359724202,1746281440476,-450.0,0.00019724,2]
[359724204,1746281440486,-450.0,0.00019724,2]
[359724206,1746281440495,-450.0,0.00019724,2]
[359724208,1746281440504,-450.0,0.00019724,2]
[359724210,1746281440514,-450.0,0.00019724,2]
[359724212,1746281440523,-569.38,0.00019724,2]
[359724214,1746281440532,-450.0,0.00019724,2]
[359724216,1746281440541,-450.0,0.00019724,2]
[359724217,1746281440551,-450.0,0.00019724,2]
[359724219,1746281440560,-454.67,0.00019724,2]
[359724221,1746281440569,-450.0,0.00019724,2]
[359724223,1746281440578,-450.0,0.00019724,2]
[359724225,1746281440587,-450.0,0.00019724,2]
[359724227,1746281440597,-588.70547733,0.00019724,2]
[359724229,1746281440606,-450.0,0.00019724,2]
[359724231,1746281440615,-450.0,0.00019724,2]
[359724233,1746281440624,-450.0,0.00019724,2]
[359724235,1746281440633,-450.0,0.00019724,2]
[359724237,1746281440642,-450.0,0.00019724,2]
[359724239,1746281440651,-450.0,0.00019724,2]
[359724241,1746281440661,-450.0,0.00019724,2]
[359724243,1746281440671,-450.0,0.00019724,2]
[359724245,1746281440680,-450.0,0.00019724,2]
[359724246,1746281440690,-450.0,0.00019724,2]
[359724248,1746281440699,-450.0,0.00019724,2]
[359724250,1746281440709,-450.0,0.00019724,2]
[359724252,1746281440719,-450.0,0.00019724,2]
[359724255,1746281440728,-316.71372366,0.00019724,2]
[359724257,1746281440738,-551.6356764,0.00019724,2]
[359724258,1746281440747,-450.0,0.00019724,2]
[359724260,1746281440757,-450.0,0.00019724,2]
[359724262,1746281440767,-450.0,0.00019724,2]
[359724264,1746281440777,-450.0,0.00019724,2]
[359724266,1746281440786,-450.0,0.00019724,2]
[359724267,1746281440795,-450.0,0.00019724,2]
[359724268,1746281440804,-450.0,0.00019724,2]
[359724269,1746281440813,-450.0,0.00019724,2]
[359724270,1746281440823,-450.0,0.00019724,2]
[359724271,1746281440832,-450.0,0.00019724,2]
[359724272,1746281440841,-450.0,0.00019724,2]
[359724273,1746281440850,-450.0,0.00019724,2]
[359724274,1746281440859,-450.0,0.00019724,2]
[359724275,1746281440868,-450.0,0.00019724,2]
[359724276,1746281440878,-470.0,0.00019724,2]
[359724277,1746281440887,-450.0,0.00019724,2]
[359724278,1746281440896,-450.0,0.00019724,2]
[359724279,1746281440906,-450.0,0.00019724,2]
[359724280,1746281440915,-450.0,0.00019724,2]
[359724281,1746281440924,-525.84,0.00019724,2]
[359724282,1746281440934,-450.0,0.00019724,2]
[359724283,1746281440943,-450.0,0.00019724,2]
[359724284,1746281440953,-450.0,0.00019724,2]
[359724285,1746281440962,-494.68563965,0.00019724,2]
[359724287,1746281440972,-450.0,0.00019724,2]
[359724289,1746281440981,-450.0,0.00019724,2]
[359724291,1746281440990,-450.0,0.00019724,2]
[359724293,1746281440999,-450.0,0.00019724,2]
[359724295,1746281441008,-450.0,0.00019724,2]
[359724297,1746281441017,-450.0,0.00019724,2]
[359724299,1746281441026,-450.0,0.00019724,2]
[359724301,1746281441036,-450.0,0.00019724,2]
[359724303,1746281441045,-557.30756187,0.00019724,2]
[359724304,1746281441055,-450.0,0.00019724,2]
[359724306,1746281441064,-478.41120817,0.00019724,2]
[359724308,1746281441073,-500.0,0.00019724,2]
[359724310,1746281441083,-450.0,0.00019724,2]
[359724312,1746281441092,-500.0,0.00019724,2]
[359724314,1746281441100,-450.0,0.00019724,2]
[359724316,1746281441109,-450.0,0.00019724,2]
[359724318,1746281441118,-450.0,0.00019724,2]
[359724320,1746281441132,-450.0,0.00019724,2]
[359724322,1746281441142,-450.21,0.00019724,2]
[359724324,1746281441152,-450.0,0.00019724,2]
[359724326,1746281441161,-450.0,0.00019724,2]
[359724328,1746281441170,-450.0,0.00019724,2]
[359724329,1746281441179,-450.0,0.00019724,2]
[359724330,1746281441188,-450.0,0.00019724,2]
[359724331,1746281441197,-450.0,0.00019724,2]
[359724332,1746281441208,-450.0,0.00019724,2]
[359724333,1746281441217,-450.0,0.00019724,2]
[359724334,1746281441226,-450.0,0.00019724,2]
[359724335,1746281441236,-450.0,0.00019724,2]
[359724336,1746281441246,-450.0,0.00019724,2]
[359724337,1746281441255,-450.0,0.00019724,2]
[359724338,1746281441264,-512.28569738,0.00019724,2]
[359724339,1746281441274,-450.0,0.00019724,2]
[359724340,1746281441283,-450.0,0.00019724,2]
[359724341,1746281441292,-450.0,0.00019724,2]
[359724342,1746281441302,-450.0,0.00019724,2]
[359724343,1746281441311,-450.0,0.00019724,2]
[359724344,1746281441320,-450.0,0.00019724,2]
[359724345,1746281441330,-450.0,0.00019724,2]
[359724346,1746281441339,-370.09115084,0.00019724,2]
[359724347,1746281441349,-450.0,0.00019724,2]
[359724348,1746281441358,-450.0,0.00019724,2]
[359724349,1746281441367,-450.0,0.00019724,2]
[359724350,1746281441376,-450.0,0.00019724,2]
[359724351,1746281441386,-450.0,0.00019724,2]
[359724352,1746281441395,-450.0,0.00019724,2]
[359724353,1746281441404,-450.0,0.00019724,2]
[359724354,1746281441413,-1000.0,0.00019724,2]
[359724355,1746281441422,-450.0,0.00019724,2]
[359724356,1746281441432,-450.0,0.00019724,2]
[359724357,1746281441441,-450.0,0.00019724,2]
[359724358,1746281441450,-450.0,0.00019724,2]
[359724359,1746281441459,-450.0,0.00019724,2]
[359724360,1746281441469,-450.0,0.00019724,2]
[359724361,1746281441477,-450.0,0.00019724,2]
[359724362,1746281441486,-450.0,0.00019724,2]
[359724363,1746281441496,-450.0,0.00019724,2]
[359724364,1746281441505,-520.25,0.00019724,2]
[359724365,1746281441515,-450.0,0.00019724,2]
[359724366,1746281441523,-450.0,0.00019724,2]
[359724367,1746281441533,-450.0,0.00019724,2]
[359724368,1746281441542,-450.0,0.00019724,2]
[359724369,1746281441551,-450.0,0.00019724,2]
[359724370,1746281441560,-450.0,0.00019724,2]
[359724371,1746281441569,-450.0,0.00019724,2]
[359724372,1746281441579,-450.0,0.00019724,2]
[359724373,1746281441588,-450.0,0.00019724,2]
[359724374,1746281441597,-450.0,0.00019724,2]
[359724375,1746281441606,-484.47874522,0.00019724,2]
[359724376,1746281441615,-450.0,0.00019724,2]
[359724377,1746281441625,-292.02532154,0.00019724,2]
[359724378,1746281441634,-538.64438554,0.00019724,2]
[359724379,1746281441643,-450.0,0.00019724,2]
[359724380,1746281441652,-450.0,0.00019724,2]
[359724381,1746281441661,-450.0,0.00019724,2]
[359724382,1746281441670,-450.0,0.00019724,2]
[359724383,1746281441679,-450.0,0.00019724,2]
[359724384,1746281441688,-450.0,0.00019724,2]
[359724385,1746281441697,-450.0,0.00019724,2]
[359724386,1746281441706,-450.0,0.00019724,2]
[359724387,1746281441716,-450.0,0.00019724,2]
[359724388,1746281441725,-450.0,0.00019724,2]
[359724389,1746281441735,-450.0,0.00019724,2]
[359724390,1746281441745,-450.0,0.00019724,2]
[359724391,1746281441754,-450.0,0.00019724,2]
[359724392,1746281441763,-450.0,0.00019724,2]
[359724393,1746281441773,-450.0,0.00019724,2]
[359724394,1746281441782,-450.0,0.00019724,2]
[359724395,1746281441792,-450.0,0.00019724,2]
[359724396,1746281441801,-450.0,0.00019724,2]
[359724397,1746281441810,-450.0,0.00019724,2]
[359724398,1746281441819,-450.0,0.00019724,2]
[359724399,1746281441829,-454.11846088,0.00019724,2]
[359724400,1746281441838,-764.16,0.00019724,2]
[359724401,1746281441848,-450.0,0.00019724,2]
[359724402,1746281441857,-450.0,0.00019724,2]
[359724403,1746281441867,-2270.09,0.00019724,2]
[359724404,1746281441875,-450.0,0.00019724,2]
[359724405,1746281441885,-450.0,0.00019724,2]
[359724406,1746281441894,-450.0,0.00019724,2]
[359724407,1746281441903,-774.27,0.00019724,2]
[359724408,1746281441912,-450.0,0.00019724,2]
[359724409,1746281441921,-449.73983441,0.00019724,2]
[359724410,1746281441930,-808.32,0.00019724,2]
[359724411,1746281441939,-450.0,0.00019724,2]
[359724412,1746281441949,-450.0,0.00019724,2]
[359724413,1746281441958,-450.0,0.00019724,2]
[359724414,1746281441967,-619.57,0.00019724,2]
[359724415,1746281441976,-450.0,0.00019724,2]
[359724416,1746281441986,-997.72,0.00019724,2]
[359724417,1746281441996,-450.79,0.00019724,2]
[359724418,1746281442005,-450.0,0.00019724,2]
[359724419,1746281442014,-450.0,0.00019724,2]
[359724420,1746281442024,-450.0,0.00019724,2]
[359724421,1746281442033,-450.0,0.00019724,2]
[359724422,1746281442042,-450.0,0.00019724,2]
[359724423,1746281442052,-5678.96,0.00019724,2]
[359724424,1746281442061,-450.0,0.00019724,2]
[359724425,1746281442070,-1609.97,0.00019724,2]
[359724426,1746281442080,-5031.75,0.00019724,2]
[359724427,1746281442089,-469.72,0.00019724,2]
[359724428,1746281442099,-450.0,0.00019724,2]
[359724429,1746281442108,-450.0,0.00019724,2]
[359724430,1746281442117,-450.0,0.00019724,2]
[359724431,1746281442132,-450.0,0.00019724,2]
[359724432,1746281442141,-450.0,0.00019724,2]
[359724433,1746281442151,-450.0,0.00019724,2]
[359724434,1746281442160,-484.03,0.00019724,2]
[359724435,1746281442170,-450.0,0.00019724,2]
[359724436,1746281442180,-549.88,0.00019724,2]
[359724437,1746281442189,-500.0,0.00019724,2]
[359724438,1746281442200,-450.0,0.00019724,2]
[359724439,1746281442210,-518.92159158,0.00019724,2]
[359724440,1746281442219,-6211.51,0.00019724,2]
[359724441,1746281442228,-450.0,0.00019724,2]
[359724442,1746281442237,-390.10366394,0.00019724,2]
[359724443,1746281442247,-630.83,0.00019724,2]
[359724444,1746281442256,-450.0,0.00019724,2]
[359724445,1746281442265,-450.0,0.00019724,2]
[359724446,1746281442274,-5633.86,0.00019724,2]
[359724447,1746281442283,-450.0,0.00019724,2]
[359724448,1746281442293,-450.0,0.00019724,2]
[359724449,1746281442301,-876.86,0.00019724,2]
[359724450,1746281442311,-638.34,0.00019724,2]
[359724451,1746281442320,-450.0,0.00019724,2]
[359724452,1746281442329,-511.76,0.00019724,2]
[359724453,1746281442339,-890.72,0.00019724,2]
[359724454,1746281442348,-2554.92,0.00019724,2]
[359724455,1746281442358,-450.0,0.00019724,2]
[359724456,1746281442370,-450.0,0.00019724,2]
[359724457,1746281442380,-450.0,0.00019724,2]
[359724458,1746281442390,-450.0,0.00019724,2]
[359724459,1746281442400,-450.0,0.00019724,2]
[359724460,1746281442411,-555.08,0.00019724,2]
[359724461,1746281442420,-450.0,0.00019724,2]
[359724462,1746281442430,-450.0,0.00019724,2]
[359724463,1746281442439,-634.49,0.00019724,2]
[359724464,1746281442449,-450.0,0.00019724,2]
[359724465,1746281442458,-450.0,0.00019724,2]
[359724466,1746281442468,-556.52,0.00019724,2]
[359724468,1746281442477,-5952.18,0.00019724,2]
[359724471,1746281442488,-841.13,0.00019724,2]
[359724474,1746281442497,-450.0,0.00019724,2]
[359724475,1746281442506,-500.0,0.00019724,2]
[359724477,1746281442515,-450.0,0.00019724,2]
[359724479,1746281442525,-450.0,0.00019724,2]
[359724481,1746281442535,-106401.88,0.00019724,2]
[359724483,1746281442544,-450.0,0.00019724,2]
[359724485,1746281442553,-500.0,0.00019724,2]
[359724487,1746281442562,-553.77,0.00019724,2]
[359724489,1746281442571,-450.0,0.00019724,2]
[359724492,1746281442581,-450.0,0.00019724,2]
[359724494,1746281442590,-564.89707459,0.00019724,2]
[359724496,1746281442599,-479.20352983,0.00019724,2]
[359724498,1746281442609,-510.92426429,0.00019724,2]
[359724500,1746281442618,-777.46,0.00019724,2]
[359724502,1746281442627,-482.04692344,0.00019724,2]
[359724504,1746281442636,-450.0,0.00019724,2]
[359724506,1746281442645,-533.95367948,0.00019724,2]
[359724508,1746281442655,-473.97622075,0.00019724,2]
[359724509,1746281442664,-529.54923781,0.00019724,2]
[359724510,1746281442673,-450.0,0.00019724,2]
[359724511,1746281442683,-1995.8,0.00019724,2]
[359724512,1746281442692,-5499.71,0.00019724,2]
[359724513,1746281442702,-471.7155258,0.00019724,2]
[359724514,1746281442711,-450.0,0.00019724,2]
[359724515,1746281442720,-541.70729249,0.00019724,2]
[359724516,1746281442729,-498.62,0.00019724,2]
[359724517,1746281442739,-477.69010555,0.00019724,2]
[359724518,1746281442749,-25429.18,0.00019724,2]
[359724519,1746281442758,-450.0,0.00019724,2]
[359724520,1746281442768,-450.0,0.00019724,2]
[359724521,1746281442777,-450.0,0.00019724,2]
[359724522,1746281442786,-368.23329625,0.00019724,2]
[359724523,1746281442796,-450.0,0.00019724,2]
[359724524,1746281442805,-474.5058927,0.00019724,2]
[359724525,1746281442815,-450.0,0.00019724,2]
[359724526,1746281442824,-450.0,0.00019724,2]
[359724527,1746281442834,-450.0,0.00019724,2]
[359724528,1746281442843,-450.0,0.00019724,2]
[359724529,1746281442853,-500.0,0.00019724,2]
[359724530,1746281442863,-1774.52,0.00019724,2]
[359724531,1746281442872,-450.0,0.00019724,2]
[359724532,1746281442882,-450.0,0.00019724,2]
[359724538,1746281443071,-516.32663185,0.00019724,2]
[359724539,1746281443108,-999.0,0.00019724,2]
[359724540,1746281443118,-475.76929183,0.00019724,2]
[359724541,1746281443131,-450.0,0.00019724,2]
[359724542,1746281443141,-450.0,0.00019724,2]
[359724543,1746281443151,-16047.61,0.00019724,2]
[359724544,1746281443160,-241.92087674,0.00019724,2]
[359724545,1746281443170,-767.96,0.00019724,2]
[359724546,1746281443180,-450.0,0.00019724,2]
[359724548,1746281443190,-515.31,0.00019724,2]
[359724549,1746281443200,-420.59852288,0.00019724,2]
[359724550,1746281443210,-1942.09,0.00019724,2]
[359724551,1746281443220,-450.0,0.00019724,2]
[359724552,1746281443230,-479.60042015,0.00019724,2]
[359724553,1746281443239,-450.0,0.00019724,2]
[359724554,1746281443249,-450.0,0.00019724,2]
[359724555,1746281443259,-450.0,0.00019724,2]
[359724556,1746281443268,-450.0,0.00019724,2]
[359724557,1746281443278,-682.19,0.00019724,2]
[359724558,1746281443287,-557.2,0.00019724,2]
[359724559,1746281443296,-765.66,0.00019724,2]
[359724560,1746281443306,-450.0,0.00019724,2]
[359724561,1746281443315,-656.6,0.00019724,2]
[359724562,1746281443325,-450.0,0.00019724,2]
[359724563,1746281443335,-450.0,0.00019724,2]
[359724564,1746281443344,-450.0,0.00019724,2]
[359724565,1746281443354,-474.8670517,0.00019724,2]
[359724566,1746281443364,-475.04609516,0.00019724,2]
[359724567,1746281443373,-450.0,0.00019724,2]
[359724568,1746281443382,-450.0,0.00019724,2]
[359724569,1746281443392,-450.0,0.00019724,2]
[359724570,1746281443402,-530.13,0.00019724,2]
[359724571,1746281443411,-450.0,0.00019724,2]
[359724572,1746281443423,-450.0,0.00019724,2]
[359724573,1746281443433,-528.20266746,0.00019724,2]
[359724574,1746281443442,-654.39,0.00019724,2]
[359724575,1746281443451,-450.0,0.00019724,2]
[359724576,1746281443462,-572.62453118,0.00019724,2]
[359724577,1746281443473,-488.33646069,0.00019724,2]
[359724578,1746281443483,-450.0,0.00019724,2]
[359724579,1746281443493,-450.0,0.00019724,2]
[359724580,1746281443504,-497.3834913,0.00019724,2]
[359724581,1746281443514,-450.0,0.00019724,2]
[359724582,1746281443523,-450.0,0.00019724,2]
[359724583,1746281443532,-450.0,0.00019724,2]
[359724584,1746281443542,-450.0,0.00019724,2]
[359724585,1746281443551,-450.0,0.00019724,2]
[359724586,1746281443561,-544.68239478,0.00019724,2]
[359724587,1746281443570,-1042.33,0.00019724,2]
[359724588,1746281443580,-450.0,0.00019724,2]
[359724589,1746281443589,-550.65940848,0.00019724,2]
[359724590,1746281443598,-450.0,0.00019724,2]
[359724591,1746281443608,-1248.63,0.00019724,2]
[359724592,1746281443617,-450.0,0.00019724,2]
[359724593,1746281443627,-450.0,0.00019724,2]
[359724594,1746281443637,-450.0,0.00019724,2]
[359724595,1746281443646,-450.0,0.00019724,2]
[359724596,1746281443656,-450.0,0.00019724,2]
[359724597,1746281443666,-450.0,0.00019724,2]
[359724598,1746281443675,-450.0,0.00019724,2]
[359724599,1746281443686,-474.36454793,0.00019724,2]
[359724600,1746281443695,-450.0,0.00019724,2]
[359724602,1746281443704,-470.6803191,0.00019724,2]
[359724604,1746281443714,-450.0,0.00019724,2]
[359724606,1746281443725,-168.31041864,0.00019724,2]
[359724608,1746281443734,-477.30005923,0.00019724,2]
[359724609,1746281443744,-450.0,0.00019724,2]
[359724610,1746281443753,-848.67,0.00019724,2]
[359724611,1746281443763,-581.17319964,0.00019724,2]
[359724612,1746281443772,-700.02,0.00019724,2]
[359724613,1746281443782,-450.0,0.00019724,2]
[359724614,1746281443791,-450.0,0.00019724,2]
[359724615,1746281443801,-636.44,0.00019724,2]
[359724616,1746281443809,-450.0,0.00019724,2]
[359724617,1746281443819,-582.0750284,0.00019724,2]
[359724618,1746281443828,-450.0,0.00019724,2]
[359724619,1746281443837,-450.0,0.00019724,2]
[359724620,1746281443847,-450.0,0.00019724,2]
[359724621,1746281443856,-450.0,0.00019724,2]
[359724622,1746281443865,-450.0,0.00019724,2]
[359724623,1746281443875,-743.58,0.00019724,2]
[359724624,1746281443884,-450.0,0.00019724,2]
[359724625,1746281443894,-562.94038197,0.00019724,2]
[359724626,1746281443903,-550.86,0.00019724,2]
[359724627,1746281443913,-450.0,0.00019724,2]
[359724628,1746281443922,-450.0,0.00019724,2]
[359724629,1746281443932,-398.2486717,0.00019724,2]
[359724630,1746281443942,-450.0,0.00019724,2]
[359724631,1746281443952,-450.0,0.00019724,2]
[359724632,1746281443962,-554.23,0.00019724,2]
[359724633,1746281443971,-1794.79,0.00019724,2]
[359724634,1746281443981,-168.82327602,0.00019724,2]
[359724635,1746281443990,-756.49,0.00019724,2]
[359724636,1746281444000,-533.2085114,0.00019724,2]
[359724637,1746281444010,-456.68072204,0.00019724,2]
[359724638,1746281444021,-973.7,0.00019724,2]
[359724639,1746281444031,-450.0,0.00019724,2]
[359724640,1746281444040,-481.68611999,0.00019724,2]
[359724641,1746281444050,-450.0,0.00019724,2]
[359724642,1746281444059,-478.33957761,0.00019724,2]
[359724643,1746281444068,-450.0,0.00019724,2]
[359724644,1746281444077,-536.24,0.00019724,2]
[359724645,1746281444087,-839.8,0.00019724,2]
[359724646,1746281444097,-450.0,0.00019724,2]
[359724647,1746281444106,-450.0,0.00019724,2]
[359724648,1746281444116,-450.0,0.00019724,2]
[359724649,1746281444129,-450.0,0.00019724,2]
[359724650,1746281444138,-472.61464909,0.00019724,2]
[359724651,1746281444148,-167.75944272,0.00019724,2]
[359724652,1746281444157,-450.0,0.00019724,2]
[359724653,1746281444168,-450.0,0.00019724,2]
[359724654,1746281444178,-478.30414347,0.00019724,2]
[359724655,1746281444187,-450.0,0.00019724,2]
[359724656,1746281444198,-450.0,0.00019724,2]
[359724657,1746281444207,-729.24,0.00019724,2]
[359724658,1746281444217,-505.94631352,0.00019724,2]
[359724659,1746281444226,-450.0,0.00019724,2]
[359724660,1746281444236,-472.99754286,0.00019724,2]
[359724661,1746281444246,-500.0,0.00019724,2]
[359724662,1746281444256,-500.0,0.00019724,2]
[359724663,1746281444265,-450.0,0.00019724,2]
[359724664,1746281444275,-512.52,0.00019725,2]
[359724665,1746281444284,-412.14685447,0.00019725,2]
[359724666,1746281444294,-450.0,0.00019725,2]
[359724667,1746281444303,-450.0,0.00019725,2]
[359724668,1746281444312,-450.0,0.00019725,2]
[359724669,1746281444321,-474.06297841,0.00019725,2]
[359724670,1746281444330,-474.44796838,0.00019725,2]
[359724671,1746281444340,-450.0,0.00019725,2]